[Event "Hungarian Rapid-ch 2022"]
[Site "Ajka"]
[Date "2022.07.17"]
[Round "10.3"]
[White "Czebe, Attila"]
[Black "Gledura, Benjamin"]
[Result "0-1"]
[ECO "B24"]
[WhiteElo "2385"]
[BlackElo "2637"]
[Annotator "ChessBase"]
[PlyCount "120"]
[EventDate "2022.07.15"]
[EventType "swiss"]
[EventCountry "HUN"]
[SourceTitle "playchess.com"]
[Source "ChessBase"]
[SourceQuality "1"]
[TimeControl "900+10"]

1. e4 {[%emt 0:00:11]} c5 {[%emt 0:00:15]} 2. Nc3 {[%emt 0:00:04]} Nc6 {[%emt 0:00:05]} 3. Bb5 {[%emt 0:00:03]} Nd4 {[%emt 0:00:11]} 4. Nf3 {[%emt 0:00:03]} a6 {[%emt 0:00:53]} 5. Bc4 {[%emt 0:00:12]} e6 {[%emt 0:00:59]} 6. Nxd4 {[%emt 0:00:54]} cxd4 {[%emt 0:00:01]} 7. Ne2 {[%emt 0:00:03]} b5 {[%emt 0:00:45]} 8. Bb3 {[%emt 0:00:01]} Bb7 {[%emt 0:00:35]} 9. d3 {[%emt 0:01:11]} Bc5 {[%emt 0:00:02]} 10. O-O {[%emt 0:00:27]} Ne7 {[%emt 0:00:02]} 11. c3 {[%emt 0:01:14]} Nc6 {[%emt 0:01:35]} 12. cxd4 {[%emt 0:00:40]} Nxd4 {[%emt 0:00:02]} 13. Be3 {[%emt 0:00:11]} Nxb3 {[%emt 0:00:19]} 14. Qxb3 {[%emt 0:00:20]} Bxe3 {[%emt 0:00:12]} 15. fxe3 {[%emt 0:00:02]} Qb6 {[%emt 0:01:00]} 16. Rf3 {[%emt 0:00:58]} f5 {[%emt 0:00:40]} 17. Qc3 {[%emt 0:01:02]} O-O {[%emt 0:01:33]} 18. Rg3 {[%emt 0:00:16]} g6 {[%emt 0:00:01]} 19. exf5 {[%emt 0:00:40]} Rxf5 {[%emt 0:00:15]} 20. Rf1 {[%emt 0:03:11]} Rc8 {[%emt 0:01:20]} 21. Qe1 {[%emt 0:00:16]} Rc2 {[%emt 0:03:34]} 22. Nd4 {[%emt 0:00:02]} Rxf1+ {[%emt 0:00:09]} 23. Qxf1 {[%emt 0:00:01]} Rxb2 {[%emt 0:00:07]} 24. Qf6 {[%emt 0:00:08]} Rb1+ {[%emt 0:00:08]} 25. Kf2 {[%emt 0:00:03]} Qc5 {[%emt 0:00:28]} 26. Rg5 {[%emt 0:04:07]} Rb2+ {[%emt 0:00:47]} 27. Ne2 {[%emt 0:00:01]} Qf8 {[%emt 0:00:09]} 28. Qxf8+ {[%emt 0:00:02]} Kxf8 {[%emt 0:00:01]} 29. a4 {[%emt 0:00:01]} bxa4 {[%emt 0:01:17]} 30. Ra5 {[%emt 0:00:01]} Ra2 {[%emt 0:00:42]} 31. e4 {[%emt 0:00:03]} a3 {[%emt 0:00:06]} 32. Ke3 {[%emt 0:00:02]} Ra1 {[%emt 0:00:02]} 33. Nd4 {[%emt 0:01:53]} Ke7 {[%emt 0:00:58]} 34. Nc2 {[%emt 0:00:32]} Rg1 {[%emt 0:00:04]} 35. Kf2 {[%emt 0:00:26]} Rc1 {[%emt 0:00:02]} 36. Nxa3 {[%emt 0:00:22]} Ra1 {[%emt 0:00:01]} 37. h4 {[%emt 0:00:54]} Ra2+ {[%emt 0:00:21]} 38. Kf3 {[%emt 0:00:01]} Rd2 {[%emt 0:00:13]} 39. Ke3 {[%emt 0:00:24]} Rxg2 {[%emt 0:00:02]} 40. Nc4 {[%emt 0:00:13]} Rh2 {[%emt 0:00:07]} 41. Rc5 {[%emt 0:00:00]} Bc6 {[%emt 0:00:16]} 42. Ne5 {[%emt 0:00:08]} Kd6 {[%emt 0:00:28]} 43. d4 {[%emt 0:00:10]} Rxh4 {[%emt 0:00:28]} 44. Nc4+ {[%emt 0:00:01]} Ke7 {[%emt 0:00:04]} 45. Nd2 {[%emt 0:00:23]} h6 {[%emt 0:00:02]} 46. d5 {[%emt 0:00:08]} exd5 {[%emt 0:00:25]} 47. exd5 {[%emt 0:00:01]} Bb5 {[%emt 0:00:09]} 48. Ne4 {[%emt 0:00:02]} g5 {[%emt 0:00:07]} 49. Rc8 {[%emt 0:00:01]} Rh3+ {[%emt 0:00:14]} 50. Kd4 {[%emt 0:00:02]} d6 {[%emt 0:00:04]} 51. Nf2 {[%emt 0:00:13]} Rf3 {[%emt 0:00:01]} 52. Rc7+ {[%emt 0:00:07]} Kf6 {[%emt 0:00:10]} 53. Ne4+ {[%emt 0:00:03]} Kg6 {[%emt 0:00:07]} 54. Nxd6 {[%emt 0:00:02]} g4 {[%emt 0:00:12]} 55. Rc8 {[%emt 0:00:01]} Bd7 {[%emt 0:00:36]} 56. Rg8+ {[%emt 0:00:18]} Kh7 {[%emt 0:00:02]} 57. Rd8 {[%emt 0:00:11]} Ba4 {[%emt 0:00:01]} 58. Ra8 {[%emt 0:00:28]} g3 {[%emt 0:00:08]} 59. Ra7+ {[%emt 0:00:01]} Kg6 {[%emt 0:00:11]} 60. Rxa6 {[%emt 0:00:10]} g2 {[%emt 0:00:29]} 0-1

[Event "Hungarian Rapid-ch 2022"]
[Site "Ajka"]
[Date "2022.07.17"]
[Round "10.4"]
[White "Jakab, Attila"]
[Black "Hera, Imre Jr."]
[Result "1/2-1/2"]
[ECO "D02"]
[WhiteElo "2311"]
[BlackElo "2568"]
[Annotator "ChessBase"]
[PlyCount "73"]
[EventDate "2022.07.15"]
[EventType "swiss"]
[EventCountry "HUN"]
[SourceTitle "playchess.com"]
[Source "ChessBase"]
[SourceQuality "1"]
[TimeControl "900+10"]

1. d4 {[%emt 0:00:14]} d5 {[%emt 0:00:24]} 2. Nf3 {[%emt 0:00:03]} Nf6 {[%emt 0:00:08]} 3. Bf4 {[%emt 0:00:03]} c5 {[%emt 0:00:20]} 4. e3 {[%emt 0:00:07]} Nc6 {[%emt 0:00:19]} 5. c3 {[%emt 0:00:05]} cxd4 {[%emt 0:00:38]} 6. exd4 {[%emt 0:00:20]} Bf5 {[%emt 0:00:04]} 7. Bd3 {[%emt 0:00:02]} Bxd3 {[%emt 0:00:05]} 8. Qxd3 {[%emt 0:00:02]} e6 {[%emt 0:00:01]} 9. O-O {[%emt 0:00:03]} Be7 {[%emt 0:01:40]} 10. h3 {[%emt 0:00:10]} O-O {[%emt 0:00:03]} 11. Nbd2 {[%emt 0:00:09]} a6 {[%emt 0:00:12]} 12. Rfe1 {[%emt 0:00:10]} b5 {[%emt 0:00:20]} 13. b4 {[%emt 0:00:22]} Qb6 {[%emt 0:00:52]} 14. a4 {[%emt 0:00:09]} bxa4 {[%emt 0:00:20]} 15. Rxa4 {[%emt 0:00:12]} Qb5 {[%emt 0:00:03]} 16. Qc2 {[%emt 0:00:38]} Rfc8 {[%emt 0:00:44]} 17. Rea1 {[%emt 0:00:29]} h6 {[%emt 0:02:57]} 18. Qb1 {[%emt 0:00:33]} Bd8 {[%emt 0:01:30]} 19. Qf1 {[%emt 0:00:44]} Qxf1+ {[%emt 0:01:21]} 20. Kxf1 {[%emt 0:00:02]} Nb8 {[%emt 0:01:00]} 21. Bxb8 {[%emt 0:01:17]} Raxb8 {[%emt 0:00:03]} 22. R1a3 {[%emt 0:00:08]} Rb6 {[%emt 0:00:19]} 23. Rxa6 {[%emt 0:00:25]} Kf8 {[%emt 0:00:10]} 24. Rxb6 {[%emt 0:00:15]} Bxb6 {[%emt 0:00:01]} 25. Ne5 {[%emt 0:00:08]} Bc7 {[%emt 0:00:25]} 26. Ke2 {[%emt 0:00:47]} g5 {[%emt 0:00:55]} 27. Nd3 {[%emt 0:00:57]} Ne8 {[%emt 0:00:09]} 28. c4 {[%emt 0:01:29]} dxc4 {[%emt 0:00:07]} 29. Nxc4 {[%emt 0:00:02]} Rd8 {[%emt 0:00:12]} 30. Ke3 {[%emt 0:01:33]} Nf6 {[%emt 0:00:01]} 31. Rb3 {[%emt 0:00:01]} Nd5+ {[%emt 0:00:04]} 32. Kf3 {[%emt 0:00:01]} Nb6 {[%emt 0:00:22]} 33. Nxb6 {[%emt 0:02:19]} Bxb6 {[%emt 0:00:01]} 34. Ke2 {[%emt 0:00:01]} Rxd4 {[%emt 0:00:05]} 35. Rc3 {[%emt 0:00:15]} Rd5 {[%emt 0:00:46]} 36. Rc6 {[%emt 0:00:10]} Bd4 {[%emt 0:00:03]} 37. Rc7 {[%emt 0:00:13]} 1/2-1/2

[Event "Hungarian Rapid-ch 2022"]
[Site "Ajka"]
[Date "2022.07.17"]
[Round "10.5"]
[White "Csiszar, Csaba"]
[Black "Prohaszka, Peter"]
[Result "0-1"]
[ECO "D02"]
[WhiteElo "2389"]
[BlackElo "2570"]
[Annotator "ChessBase"]
[PlyCount "90"]
[EventDate "2022.07.15"]
[EventType "swiss"]
[EventCountry "HUN"]
[SourceTitle "playchess.com"]
[Source "ChessBase"]
[SourceQuality "1"]
[TimeControl "900+10"]

1. d4 {[%emt 0:00:12]} d5 {[%emt 0:00:16]} 2. Nf3 {[%emt 0:00:02]} Nf6 {[%emt 0:00:04]} 3. Bf4 {[%emt 0:00:02]} c5 {[%emt 0:00:01]} 4. dxc5 {[%emt 0:00:03]} e6 {[%emt 0:00:28]} 5. e3 {[%emt 0:00:14]} Nc6 {[%emt 0:00:12]} 6. a3 {[%emt 0:00:12]} Bxc5 {[%emt 0:01:11]} 7. c4 {[%emt 0:00:04]} O-O {[%emt 0:01:11]} 8. Nc3 {[%emt 0:00:11]} a6 {[%emt 0:02:13]} 9. Rc1 {[%emt 0:05:30]} d4 {[%emt 0:01:46]} 10. exd4 {[%emt 0:00:11]} Nxd4 {[%emt 0:00:08]} 11. b4 {[%emt 0:00:11]} Nxf3+ {[%emt 0:00:55]} 12. Qxf3 {[%emt 0:00:04]} Bd4 {[%emt 0:00:16]} 13. Be2 {[%emt 0:02:53]} e5 {[%emt 0:02:37]} 14. Bg5 {[%emt 0:00:02]} h6 {[%emt 0:00:15]} 15. Bxf6 {[%emt 0:00:55]} Qxf6 {[%emt 0:00:03]} 16. Qxf6 {[%emt 0:00:51]} gxf6 {[%emt 0:00:02]} 17. Bf3 {[%emt 0:01:21]} f5 {[%emt 0:00:35]} 18. Bd5 {[%emt 0:00:29]} Rb8 {[%emt 0:00:46]} 19. Ne2 {[%emt 0:00:02]} Ba7 {[%emt 0:00:03]} 20. O-O {[%emt 0:00:52]} Be6 {[%emt 0:00:01]} 21. Rfd1 {[%emt 0:00:16]} Rfd8 {[%emt 0:00:03]} 22. Kf1 {[%emt 0:01:24]} Kg7 {[%emt 0:00:25]} 23. Bxe6 {[%emt 0:00:35]} fxe6 {[%emt 0:00:03]} 24. f3 {[%emt 0:00:01]} Be3 {[%emt 0:00:13]} 25. Rb1 {[%emt 0:00:05]} Kf6 {[%emt 0:00:14]} 26. c5 {[%emt 0:00:10]} h5 {[%emt 0:00:40]} 27. Nc3 {[%emt 0:00:30]} h4 {[%emt 0:00:27]} 28. Rxd8 {[%emt 0:00:07]} Rxd8 {[%emt 0:00:01]} 29. Rd1 {[%emt 0:00:00]} Rxd1+ {[%emt 0:00:22]} 30. Nxd1 {[%emt 0:00:01]} Bc1 {[%emt 0:00:01]} 31. a4 {[%emt 0:01:05]} Ba3 {[%emt 0:00:03]} 32. b5 {[%emt 0:00:05]} axb5 {[%emt 0:00:17]} 33. axb5 {[%emt 0:00:01]} Bxc5 {[%emt 0:00:02]} 34. Ke2 {[%emt 0:00:01]} Bd4 {[%emt 0:00:01]} 35. Kd3 {[%emt 0:00:21]} Ke7 {[%emt 0:01:08]} 36. f4 {[%emt 0:00:52]} Kd6 {[%emt 0:00:03]} 37. Kc4 {[%emt 0:00:02]} Bg1 {[%emt 0:00:54]} 38. fxe5+ {[%emt 0:00:14]} Kxe5 {[%emt 0:00:02]} 39. Nc3 {[%emt 0:00:51]} Bxh2 {[%emt 0:00:05]} 40. Ne2 {[%emt 0:00:01]} Bg3 {[%emt 0:00:26]} 41. Nd4 {[%emt 0:00:02]} Bf2 {[%emt 0:00:22]} 42. Nf3+ {[%emt 0:00:20]} Kf4 {[%emt 0:00:05]} 43. Kd3 {[%emt 0:00:07]} Kg3 {[%emt 0:00:42]} 44. Ng5 {[%emt 0:00:05]} Kxg2 {[%emt 0:00:50]} 45. Nxe6 {[%emt 0:00:07]} Bg3 {[%emt 0:00:09]} 0-1

[Event "Hungarian Rapid-ch 2022"]
[Site "Ajka"]
[Date "2022.07.17"]
[Round "10.6"]
[White "Antal, Gergely"]
[Black "Mihok, Oliver"]
[Result "1/2-1/2"]
[ECO "B47"]
[WhiteElo "2571"]
[BlackElo "2549"]
[Annotator "ChessBase"]
[PlyCount "83"]
[EventDate "2022.07.15"]
[EventType "swiss"]
[EventCountry "HUN"]
[SourceTitle "playchess.com"]
[Source "ChessBase"]
[SourceQuality "1"]
[TimeControl "900+10"]

1. e4 {[%emt 0:00:13]} c5 {[%emt 0:00:11]} 2. Nf3 {[%emt 0:00:04]} e6 {[%emt 0:00:01]} 3. d4 {[%emt 0:00:30]} cxd4 {[%emt 0:00:02]} 4. Nxd4 {[%emt 0:00:02]} Nc6 {[%emt 0:00:01]} 5. Nc3 {[%emt 0:00:52]} Qc7 {[%emt 0:00:02]} 6. Be2 {[%emt 0:01:00]} Nf6 {[%emt 0:00:21]} 7. Be3 {[%emt 0:02:16]} Be7 {[%emt 0:00:19]} 8. O-O {[%emt 0:00:21]} O-O {[%emt 0:00:18]} 9. f4 {[%emt 0:00:04]} d6 {[%emt 0:00:02]} 10. Kh1 {[%emt 0:00:08]} Nxd4 {[%emt 0:00:05]} 11. Bxd4 {[%emt 0:00:04]} e5 {[%emt 0:00:11]} 12. Be3 {[%emt 0:00:07]} b6 {[%emt 0:01:09]} 13. Bd3 {[%emt 0:03:38]} Bb7 {[%emt 0:01:16]} 14. Qf3 {[%emt 0:00:02]} Rad8 {[%emt 0:02:21]} 15. Rae1 {[%emt 0:00:02]} Qc8 {[%emt 0:00:31]} 16. Nd5 {[%emt 0:00:39]} Nxd5 {[%emt 0:00:30]} 17. exd5 {[%emt 0:00:02]} Bf6 {[%emt 0:01:29]} 18. c3 {[%emt 0:01:57]} exf4 {[%emt 0:00:49]} 19. Bxf4 {[%emt 0:00:02]} Qc5 {[%emt 0:00:19]} 20. Be4 {[%emt 0:01:21]} Ba6 {[%emt 0:00:52]} 21. Be3 {[%emt 0:00:40]} Qc8 {[%emt 0:00:33]} 22. Rf2 {[%emt 0:01:57]} Be5 {[%emt 0:00:08]} 23. Bb1 {[%emt 0:00:49]} Rde8 {[%emt 0:01:24]} 24. Bd2 {[%emt 0:01:06]} g6 {[%emt 0:00:54]} 25. b3 {[%emt 0:00:10]} f5 {[%emt 0:00:34]} 26. a4 {[%emt 0:00:30]} Bg7 {[%emt 0:01:45]} 27. c4 {[%emt 0:00:02]} Rxe1+ {[%emt 0:00:06]} 28. Bxe1 {[%emt 0:00:01]} Re8 {[%emt 0:00:33]} 29. Re2 {[%emt 0:00:01]} Kf7 {[%emt 0:00:46]} 30. Bg3 {[%emt 0:00:14]} Qd7 {[%emt 0:00:11]} 31. Bd3 {[%emt 0:00:08]} Rxe2 {[%emt 0:00:15]} 32. Qxe2 {[%emt 0:00:02]} Qe7 {[%emt 0:00:02]} 33. Kg1 {[%emt 0:00:41]} Qxe2 {[%emt 0:00:35]} 34. Bxe2 {[%emt 0:00:05]} Bd4+ {[%emt 0:00:09]} 35. Kf1 {[%emt 0:00:05]} Ke7 {[%emt 0:00:09]} 36. Ke1 {[%emt 0:00:06]} Bc8 {[%emt 0:00:09]} 37. h4 {[%emt 0:00:50]} a5 {[%emt 0:00:04]} 38. Kd2 {[%emt 0:00:01]} Bc5 {[%emt 0:00:18]} 39. Bf4 {[%emt 0:00:04]} Kf6 {[%emt 0:00:09]} 40. Kd3 {[%emt 0:00:20]} Bd7 {[%emt 0:00:05]} 41. Bf3 {[%emt 0:00:02]} Bc8 {[%emt 0:00:41]} 42. Ke2 {[%emt 0:00:22]} 1/2-1/2

[Event "Hungarian Rapid-ch 2022"]
[Site "Ajka"]
[Date "2022.07.17"]
[Round "10.7"]
[White "Csonka, Balazs"]
[Black "Horvath, Adam"]
[Result "1-0"]
[ECO "B40"]
[WhiteElo "2495"]
[BlackElo "2520"]
[Annotator "ChessBase"]
[PlyCount "77"]
[EventDate "2022.07.15"]
[EventType "swiss"]
[EventCountry "HUN"]
[SourceTitle "playchess.com"]
[Source "ChessBase"]
[SourceQuality "1"]
[TimeControl "900+10"]

1. e4 {[%emt 0:00:14]} c5 {[%emt 0:00:11]} 2. Nf3 {[%emt 0:00:02]} e6 {[%emt 0:00:02]} 3. c3 {[%emt 0:00:02]} Nf6 {[%emt 0:00:02]} 4. e5 {[%emt 0:00:01]} Nd5 {[%emt 0:00:01]} 5. d4 {[%emt 0:00:02]} cxd4 {[%emt 0:00:03]} 6. cxd4 {[%emt 0:00:02]} d6 {[%emt 0:00:15]} 7. Bc4 {[%emt 0:00:05]} Be7 {[%emt 0:00:07]} 8. O-O {[%emt 0:00:04]} O-O {[%emt 0:00:05]} 9. Qe2 {[%emt 0:00:03]} Bd7 {[%emt 0:00:59]} 10. Rd1 {[%emt 0:03:55]} Bc6 {[%emt 0:00:14]} 11. Bxd5 {[%emt 0:00:07]} Bxd5 {[%emt 0:00:04]} 12. Nc3 {[%emt 0:00:02]} Bxf3 {[%emt 0:00:54]} 13. Qxf3 {[%emt 0:00:02]} d5 {[%emt 0:00:01]} 14. Qg4 {[%emt 0:01:06]} f5 {[%emt 0:04:35]} 15. exf6 {[%emt 0:00:41]} Rxf6 {[%emt 0:00:02]} 16. Be3 {[%emt 0:06:45]} Nc6 {[%emt 0:00:03]} 17. Rac1 {[%emt 0:00:02]} Qd7 {[%emt 0:04:01]} 18. h4 {[%emt 0:01:19]} Raf8 {[%emt 0:00:48]} 19. h5 {[%emt 0:00:06]} h6 {[%emt 0:00:34]} 20. Ne2 {[%emt 0:01:01]} Bd6 {[%emt 0:00:14]} 21. g3 {[%emt 0:00:18]} Qf7 {[%emt 0:02:24]} 22. Nf4 {[%emt 0:01:21]} Bxf4 {[%emt 0:00:26]} 23. Bxf4 {[%emt 0:00:02]} Kh8 {[%emt 0:00:54]} 24. Rc3 {[%emt 0:00:15]} g5 {[%emt 0:01:00]} 25. Be3 {[%emt 0:00:44]} Rf3 {[%emt 0:00:26]} 26. Rc2 {[%emt 0:00:29]} Nb4 {[%emt 0:00:44]} 27. Re2 {[%emt 0:00:01]} Rf5 {[%emt 0:00:11]} 28. a3 {[%emt 0:00:08]} Nc6 {[%emt 0:00:02]} 29. Rde1 {[%emt 0:00:11]} Na5 {[%emt 0:00:05]} 30. Bd2 {[%emt 0:00:20]} Nc4 {[%emt 0:00:22]} 31. Rxe6 {[%emt 0:00:15]} Nxd2 {[%emt 0:00:07]} 32. Rxh6+ {[%emt 0:00:01]} Kg7 {[%emt 0:00:00]} 33. Ree6 {[%emt 0:00:19]} Rg8 {[%emt 0:00:29]} 34. Rhg6+ {[%emt 0:00:30]} Kf8 {[%emt 0:00:03]} 35. Ref6 {[%emt 0:00:12]} Rxf6 {[%emt 0:00:18]} 36. Qc8+ {[%emt 0:00:01]} Ke7 {[%emt 0:00:03]} 37. Rxg8 {[%emt 0:00:08]} Rd6 {[%emt 0:00:19]} 38. Qc7+ {[%emt 0:00:05]} Rd7 {[%emt 0:00:11]} 39. Qe5+ {[%emt 0:00:03]} 1-0

[Event "Hungarian Rapid-ch 2022"]
[Site "Ajka"]
[Date "2022.07.17"]
[Round "10.9"]
[White "Leviczky, Tibor"]
[Black "Horvath, Csaba"]
[Result "1-0"]
[ECO "A37"]
[WhiteElo "2281"]
[BlackElo "2506"]
[Annotator "ChessBase"]
[PlyCount "70"]
[EventDate "2022.07.15"]
[EventType "swiss"]
[EventCountry "HUN"]
[SourceTitle "playchess.com"]
[Source "ChessBase"]
[SourceQuality "1"]
[TimeControl "900+10"]

1. Nf3 {[%emt 0:00:11]} g6 {[%emt 0:00:15]} 2. c4 {[%emt 0:00:27]} Bg7 {[%emt 0:00:02]} 3. Nc3 {[%emt 0:00:06]} c5 {[%emt 0:00:09]} 4. g3 {[%emt 0:01:40]} Nc6 {[%emt 0:00:02]} 5. Bg2 {[%emt 0:00:02]} d6 {[%emt 0:00:24]} 6. d3 {[%emt 0:00:45]} Bd7 {[%emt 0:00:28]} 7. Rb1 {[%emt 0:00:34]} Qc8 {[%emt 0:00:14]} 8. h3 {[%emt 0:01:16]} Nf6 {[%emt 0:01:26]} 9. a3 {[%emt 0:00:30]} O-O {[%emt 0:00:38]} 10. b4 {[%emt 0:00:45]} Rb8 {[%emt 0:03:08]} 11. Bd2 {[%emt 0:00:22]} b6 {[%emt 0:00:48]} 12. Kf1 {[%emt 0:02:50]} e6 {[%emt 0:00:59]} 13. Kg1 {[%emt 0:01:16]} d5 {[%emt 0:01:09]} 14. cxd5 {[%emt 0:00:55]} exd5 {[%emt 0:00:10]} 15. Bf4 {[%emt 0:00:26]} Rb7 {[%emt 0:00:08]} 16. Nb5 {[%emt 0:01:26]} Ne8 {[%emt 0:00:52]} 17. Nd6 {[%emt 0:00:41]} Nxd6 {[%emt 0:00:03]} 18. Bxd6 {[%emt 0:00:02]} Re8 {[%emt 0:00:09]} 19. bxc5 {[%emt 0:00:05]} bxc5 {[%emt 0:00:03]} 20. Rxb7 {[%emt 0:00:11]} Qxb7 {[%emt 0:00:02]} 21. Bxc5 {[%emt 0:00:13]} Qb2 {[%emt 0:00:18]} 22. e3 {[%emt 0:01:19]} d4 {[%emt 0:00:59]} 23. exd4 {[%emt 0:00:33]} Nxd4 {[%emt 0:02:13]} 24. Nxd4 {[%emt 0:00:15]} Bxd4 {[%emt 0:00:03]} 25. Bxd4 {[%emt 0:00:04]} Qxd4 {[%emt 0:00:01]} 26. Qd2 {[%emt 0:00:58]} Rb8 {[%emt 0:01:10]} 27. Qe3 {[%emt 0:00:42]} Qxe3 {[%emt 0:00:15]} 28. fxe3 {[%emt 0:00:01]} Rb3 {[%emt 0:00:02]} 29. Bf1 {[%emt 0:00:22]} Bb5 {[%emt 0:00:15]} 30. Kf2 {[%emt 0:00:46]} Rxa3 {[%emt 0:00:09]} 31. d4 {[%emt 0:00:12]} Ra2+ {[%emt 0:00:01]} 32. Kf3 {[%emt 0:00:03]} Ra1 {[%emt 0:00:46]} 33. Kf2 {[%emt 0:00:12]} a5 {[%emt 0:00:14]} 34. Bg2 {[%emt 0:00:22]} Ra2+ {[%emt 0:00:49]} 35. Kg1 {[%emt 0:00:11]} Rxg2+ {[%emt 0:00:12]} 1-0

[Event "Hungarian Rapid-ch 2022"]
[Site "Ajka"]
[Date "2022.07.17"]
[Round "10.10"]
[White "Kaczur, Florian"]
[Black "Egresi, Mate"]
[Result "1-0"]
[ECO "B00"]
[WhiteElo "2482"]
[BlackElo "2376"]
[Annotator "ChessBase"]
[PlyCount "82"]
[EventDate "2022.07.15"]
[EventType "swiss"]
[EventCountry "HUN"]
[SourceTitle "playchess.com"]
[Source "ChessBase"]
[SourceQuality "1"]
[TimeControl "900+10"]

1. e4 {[%emt 0:00:12]} d6 {[%emt 0:00:11]} 2. d4 {[%emt 0:00:03]} Nf6 {[%emt 0:00:02]} 3. Bd3 {[%emt 0:00:18]} e5 {[%emt 0:00:03]} 4. c3 {[%emt 0:00:03]} Nbd7 {[%emt 0:00:43]} 5. Nf3 {[%emt 0:00:15]} Be7 {[%emt 0:00:13]} 6. O-O {[%emt 0:00:06]} O-O {[%emt 0:00:03]} 7. Re1 {[%emt 0:00:11]} c6 {[%emt 0:00:05]} 8. Nbd2 {[%emt 0:00:09]} Re8 {[%emt 0:00:18]} 9. Nf1 {[%emt 0:00:06]} Bf8 {[%emt 0:00:13]} 10. Ng3 {[%emt 0:00:04]} g6 {[%emt 0:00:15]} 11. b3 {[%emt 0:01:02]} Qc7 {[%emt 0:00:18]} 12. Bb2 {[%emt 0:00:50]} Bg7 {[%emt 0:01:37]} 13. Qd2 {[%emt 0:00:20]} b6 {[%emt 0:00:51]} 14. Rad1 {[%emt 0:00:16]} Bb7 {[%emt 0:00:10]} 15. c4 {[%emt 0:00:15]} exd4 {[%emt 0:00:22]} 16. Nxd4 {[%emt 0:00:07]} Rad8 {[%emt 0:00:25]} 17. Ndf5 {[%emt 0:05:49]} gxf5 {[%emt 0:02:32]} 18. Nxf5 {[%emt 0:00:02]} h6 {[%emt 0:00:03]} 19. Nxh6+ {[%emt 0:01:01]} Kf8 {[%emt 0:05:49]} 20. Nf5 {[%emt 0:00:02]} Re5 {[%emt 0:00:04]} 21. Nxg7 {[%emt 0:00:30]} Kxg7 {[%emt 0:00:03]} 22. f4 {[%emt 0:00:02]} Rh5 {[%emt 0:00:36]} 23. Be2 {[%emt 0:01:20]} Rh6 {[%emt 0:01:19]} 24. Qxd6 {[%emt 0:00:03]} Qxd6 {[%emt 0:00:09]} 25. Rxd6 {[%emt 0:00:02]} Kf8 {[%emt 0:00:31]} 26. Red1 {[%emt 0:00:57]} Ke7 {[%emt 0:00:21]} 27. g4 {[%emt 0:00:36]} Ng8 {[%emt 0:00:07]} 28. Rxh6 {[%emt 0:00:27]} Nxh6 {[%emt 0:00:02]} 29. g5 {[%emt 0:00:12]} Ng8 {[%emt 0:00:03]} 30. Kf2 {[%emt 0:00:53]} Nf8 {[%emt 0:00:23]} 31. Rxd8 {[%emt 0:00:02]} Kxd8 {[%emt 0:00:01]} 32. h4 {[%emt 0:00:06]} c5 {[%emt 0:00:13]} 33. Ke3 {[%emt 0:00:10]} Ke7 {[%emt 0:01:19]} 34. f5 {[%emt 0:00:15]} f6 {[%emt 0:00:22]} 35. e5 {[%emt 0:00:07]} fxg5 {[%emt 0:00:09]} 36. hxg5 {[%emt 0:00:03]} Bc6 {[%emt 0:00:24]} 37. Kf4 {[%emt 0:00:54]} Kf7 {[%emt 0:00:27]} 38. g6+ {[%emt 0:00:33]} Nxg6+ {[%emt 0:00:14]} 39. fxg6+ {[%emt 0:00:01]} Kxg6 {[%emt 0:00:01]} 40. e6 {[%emt 0:00:07]} Nf6 {[%emt 0:00:35]} 41. Bd3+ {[%emt 0:00:01]} Kg7 {[%emt 0:00:01]} 1-0

[Event "Hungarian Rapid-ch 2022"]
[Site "Ajka"]
[Date "2022.07.17"]
[Round "10.11"]
[White "Lazarne Vajda, Szidonia"]
[Black "Vertetics, Attila"]
[Result "1/2-1/2"]
[ECO "A46"]
[WhiteElo "2313"]
[BlackElo "2465"]
[Annotator "ChessBase"]
[PlyCount "94"]
[EventDate "2022.07.15"]
[EventType "swiss"]
[EventCountry "HUN"]
[SourceTitle "playchess.com"]
[Source "ChessBase"]
[SourceQuality "1"]
[TimeControl "900+10"]

1. d4 {[%emt 0:00:18]} Nf6 {[%emt 0:00:11]} 2. Nf3 {[%emt 0:00:10]} e6 {[%emt 0:00:02]} 3. Bf4 {[%emt 0:00:11]} d5 {[%emt 0:00:07]} 4. e3 {[%emt 0:00:12]} c5 {[%emt 0:00:03]} 5. c3 {[%emt 0:00:47]} Nc6 {[%emt 0:00:02]} 6. Nbd2 {[%emt 0:00:07]} Nh5 {[%emt 0:00:06]} 7. Bg5 {[%emt 0:00:31]} Qb6 {[%emt 0:00:13]} 8. Rb1 {[%emt 0:00:39]} h6 {[%emt 0:00:05]} 9. Bh4 {[%emt 0:00:02]} cxd4 {[%emt 0:02:38]} 10. Nxd4 {[%emt 0:02:03]} Nf6 {[%emt 0:00:19]} 11. Bg3 {[%emt 0:02:33]} a6 {[%emt 0:01:09]} 12. Be2 {[%emt 0:00:32]} Be7 {[%emt 0:00:12]} 13. O-O {[%emt 0:00:21]} Bd7 {[%emt 0:00:04]} 14. Qc2 {[%emt 0:01:29]} Rc8 {[%emt 0:00:11]} 15. Nxc6 {[%emt 0:01:08]} Bxc6 {[%emt 0:00:22]} 16. Qb3 {[%emt 0:01:05]} Qa5 {[%emt 0:00:17]} 17. a3 O-O {[%emt 0:00:14]} 18. Bf3 {[%emt 0:01:08]} Bb5 {[%emt 0:00:38]} 19. Rfe1 {[%emt 0:00:04]} Bd3 {[%emt 0:00:04]} 20. Rbd1 {[%emt 0:00:10]} b5 {[%emt 0:00:32]} 21. e4 {[%emt 0:00:08]} dxe4 {[%emt 0:01:27]} 22. Nxe4 {[%emt 0:00:02]} Rcd8 {[%emt 0:00:16]} 23. Nxf6+ {[%emt 0:00:37]} Bxf6 {[%emt 0:00:02]} 24. Be2 {[%emt 0:00:52]} Be4 {[%emt 0:01:11]} 25. Qb4 {[%emt 0:00:37]} Qxb4 {[%emt 0:00:11]} 26. axb4 {[%emt 0:00:02]} Rxd1 {[%emt 0:00:24]} 27. Rxd1 {[%emt 0:00:02]} Rd8 {[%emt 0:00:03]} 28. Rxd8+ {[%emt 0:00:54]} Bxd8 {[%emt 0:00:01]} 29. Bf4 {[%emt 0:00:01]} Bd5 {[%emt 0:00:19]} 30. Be3 {[%emt 0:00:15]} f5 {[%emt 0:00:50]} 31. f3 {[%emt 0:00:16]} Kf7 {[%emt 0:00:24]} 32. Kf2 {[%emt 0:00:04]} e5 {[%emt 0:00:18]} 33. g3 {[%emt 0:00:24]} Ke6 {[%emt 0:00:29]} 34. Bd1 {[%emt 0:00:22]} g5 {[%emt 0:00:50]} 35. g4 {[%emt 0:00:52]} f4 {[%emt 0:02:53]} 36. Bc5 {[%emt 0:00:02]} Be7 {[%emt 0:01:03]} 37. Bxe7 {[%emt 0:00:02]} Kxe7 {[%emt 0:00:02]} 38. Bc2 {[%emt 0:00:01]} Kd6 {[%emt 0:00:06]} 39. b3 {[%emt 0:00:48]} Be6 {[%emt 0:00:21]} 40. Ke2 {[%emt 0:00:06]} Kc7 {[%emt 0:01:23]} 41. Kf2 {[%emt 0:00:51]} Bf7 {[%emt 0:00:10]} 42. Ke2 {[%emt 0:00:01]} h5 {[%emt 0:00:12]} 43. h3 {[%emt 0:00:09]} hxg4 {[%emt 0:00:16]} 44. hxg4 {[%emt 0:00:00]} Bd5 {[%emt 0:00:11]} 45. Kf2 {[%emt 0:00:03]} Kb6 {[%emt 0:00:04]} 46. Ke2 {[%emt 0:00:04]} Be6 {[%emt 0:00:25]} 47. Kf2 {[%emt 0:00:01]} e4 1/2-1/2